fUST/lending_fUST_20240115
["ID","MTS","AMOUNT","RATE_DAILY","PERIOD"]
[311658967,1705289442721,-500.0,0.00027397,2]
[311658968,1705289442732,-500.0,0.00027397,2]
[311658969,1705289442743,-602.05912595,0.00027397,2]
[311658970,1705289442754,-500.0,0.00027397,2]
[311658971,1705289442765,-501.97924145,0.00027397,2]
[311658972,1705289442776,-500.0,0.00027397,2]
[311658973,1705289442787,-500.0,0.00027397,2]
[311658974,1705289442799,-500.0,0.00027397,2]
[311658975,1705289442810,-1396.14,0.00027397,2]
[311658977,1705289442821,-155.0,0.00027397,2]
[311658979,1705289442832,-500.0,0.00027397,2]
[311658985,1705289442952,-500.49527847,0.00027397,2]
[311658986,1705289442966,-350.0,0.00027397,2]
[311658987,1705289442976,-500.0,0.00027397,2]
[311658988,1705289442985,-500.0,0.00027397,2]
[311658990,1705289442995,-500.0,0.00027397,2]
[311658991,1705289443005,-479.34081517,0.00027397,2]
[311658992,1705289443014,-500.0,0.00027397,2]
[311658993,1705289443023,-500.0,0.00027397,2]
[311658994,1705289443032,-500.0,0.00027397,2]
[311658995,1705289443041,-500.0,0.00027397,2]
[311658996,1705289443052,-500.0,0.00027397,2]
[311658997,1705289443061,-500.0,0.00027397,2]
[311658998,1705289443070,-500.0,0.00027397,2]
[311658999,1705289443079,-501.21255682,0.00027397,2]
[311659000,1705289443088,-500.0,0.00027397,2]
[311659001,1705289443097,-500.0,0.00027397,2]
[311659002,1705289443106,-500.0,0.00027397,2]
[311659003,1705289443115,-500.0,0.00027397,2]
[311659004,1705289443124,-202.99278543,0.00027397,2]
[311659005,1705289443133,-500.0,0.00027397,2]
[311659006,1705289443142,-500.0,0.00027397,2]
[311659007,1705289443152,-1214.34,0.00027397,2]
[311659008,1705289443161,-500.0,0.00027397,2]
[311659009,1705289443171,-500.0,0.00027397,2]
[311659010,1705289443181,-500.0,0.00027397,2]
[311659011,1705289443192,-500.0,0.00027397,2]
[311659012,1705289443202,-500.0,0.00027397,2]
[311659013,1705289443211,-500.0,0.00027397,2]
[311659014,1705289443221,-505.67458463,0.00027397,2]
[311659015,1705289443230,-500.0,0.00027397,2]
[311659016,1705289443239,-500.0,0.00027397,2]
[311659017,1705289443247,-500.0,0.00027397,2]
[311659018,1705289443257,-6528.64098091,0.000274,2]
[311659019,1705289443266,-500.0,0.00027534,2]
[311659020,1705289443276,-500.0,0.00027569,2]
[311659021,1705289443286,-500.0,0.00027569,2]
[311659022,1705289443295,-500.0,0.00027569,2]
[311659023,1705289443312,-500.0,0.00027669,2]
[311659024,1705289443322,-525.38865359,0.00027669,2]
[311659025,1705289443332,-500.0,0.00027669,2]
[311659026,1705289443341,-500.0,0.00027669,2]
[311659027,1705289443351,-500.0,0.00027669,2]
[311659028,1705289443360,-500.0,0.00027669,2]
[311659029,1705289443369,-500.0,0.00027669,2]
[311659030,1705289443378,-200.0,0.00027669,2]
[311659031,1705289443388,-500.0,0.00027669,2]
[311659032,1705289443397,-500.0,0.00027669,2]
[311659033,1705289443406,-500.0,0.00027669,2]
[311659034,1705289443415,-500.0,0.00027669,2]
[311659035,1705289443424,-500.0,0.00027669,2]
[311659036,1705289443434,-254.69552869,0.00027669,2]
[311659037,1705289443443,-500.0,0.00027669,2]
[311659038,1705289443453,-500.0,0.00027669,2]
[311659039,1705289443462,-500.0,0.00027669,2]
[311659040,1705289443472,-500.0,0.00027669,2]
[311659041,1705289443481,-500.0,0.00027669,2]
[311659042,1705289443490,-500.0,0.00027669,2]
[311659043,1705289443499,-283.86791313,0.00027669,2]
[311659044,1705289443508,-500.0,0.00027669,2]
[311659046,1705289443517,-234.19164401,0.00027669,2]
[311659047,1705289443526,-500.0,0.00027669,2]
[311659049,1705289443535,-500.0,0.00027669,2]
[311659051,1705289443544,-500.0,0.00027669,2]
[311659052,1705289443555,-500.0,0.00027669,2]
[311659053,1705289443564,-500.0,0.00027669,2]
[311659054,1705289443573,-500.0,0.00027669,2]
[311659055,1705289443582,-500.0,0.00027669,2]
[311659056,1705289443591,-500.0,0.00027669,2]
[311659057,1705289443600,-155.51534172,0.00027669,2]
[311659058,1705289443609,-500.0,0.00027669,2]
[311659059,1705289443623,-500.0,0.00027669,2]
[311659060,1705289443631,-527.89924291,0.00027669,2]
[311659061,1705289443641,-500.0,0.00027669,2]
[311659062,1705289443650,-500.0,0.00027669,2]
[311659063,1705289443659,-500.0,0.00027669,2]
[311659064,1705289443668,-500.0,0.00027669,2]
[311659065,1705289443677,-500.0,0.00027669,2]
[311659066,1705289443686,-500.0,0.00027669,2]
[311659067,1705289443697,-500.0,0.00027669,2]
[311659068,1705289443706,-500.0,0.00027669,2]
[311659069,1705289443715,-500.0,0.00027669,2]
[311659070,1705289443724,-500.0,0.00027669,2]
[311659071,1705289443733,-500.0,0.00027669,2]
[311659072,1705289443742,-500.0,0.00027669,2]
[311659073,1705289443751,-500.0,0.00027669,2]
[311659074,1705289443761,-500.0,0.0002767,2]
[311659075,1705289443770,-500.0,0.0002767,2]
[311659076,1705289443780,-500.0,0.0002767,2]
[311659077,1705289443789,-500.0,0.0002767,2]
[311659078,1705289443801,-500.0,0.0002767,2]
[311659079,1705289443811,-500.0,0.0002767,2]
[311659080,1705289443820,-500.0,0.0002767,2]
[311659081,1705289443829,-500.0,0.0002767,2]
[311659082,1705289443838,-500.0,0.0002767,2]
[311659083,1705289443847,-500.0,0.00027671,2]
[311659084,1705289443856,-500.0,0.00027671,2]
[311659085,1705289443866,-500.0,0.00027671,2]
[311659086,1705289443875,-501.06235215,0.00027671,2]
[311659087,1705289443884,-500.0,0.00027671,2]
[311659088,1705289443893,-500.0,0.00027671,2]
[311659089,1705289443904,-321.69597861,0.00027671,2]
[311659090,1705289443913,-504.19080815,0.00027671,2]
[311659091,1705289443922,-500.0,0.00027671,2]
[311659092,1705289443932,-500.0,0.00027671,2]
[311659093,1705289443943,-500.0,0.00027671,2]
[311659094,1705289443952,-497.72312481,0.00027671,2]
[311659095,1705289443961,-497.11586572,0.00027671,2]
[311659096,1705289443971,-196.83956838,0.00027671,2]
[311659097,1705289443980,-500.0,0.00027671,2]
[311659098,1705289443991,-1017.38,0.00027671,2]
[311659099,1705289444001,-337.26849611,0.00027671,2]
[311659100,1705289444010,-500.0,0.00027671,2]
[311659101,1705289444019,-500.0,0.00027671,2]
[311659102,1705289444029,-501.2924132,0.00027671,2]
[311659103,1705289444038,-500.0,0.00027671,2]
[311659104,1705289444047,-220.0,0.00027671,2]
[311659105,1705289444059,-500.0,0.00027671,2]
[311659106,1705289444069,-500.0,0.00027671,2]
[311659107,1705289444078,-500.0,0.00027671,2]
[311659108,1705289444088,-500.0,0.00027671,2]
[311659109,1705289444097,-301.6619477,0.00027671,2]
[311659110,1705289444106,-500.95051049,0.00027671,2]
[311659111,1705289444116,-500.0,0.00027671,2]
[311659112,1705289444125,-500.0,0.00027671,2]
[311659113,1705289444135,-500.0,0.00027671,2]
[311659114,1705289444144,-501.15461094,0.00027671,2]
[311659115,1705289444153,-505.40013057,0.00027671,2]
[311659116,1705289444162,-700.24,0.00027671,2]
[311659117,1705289444172,-500.0,0.00027671,2]
[311659118,1705289444181,-612.3,0.00027671,2]
[311659119,1705289444191,-501.41975854,0.00027671,2]
[311659120,1705289444200,-500.0,0.00027671,2]
[311659121,1705289444209,-502.50961548,0.00027671,2]
[311659122,1705289444219,-500.0,0.00027671,2]
[311659123,1705289444228,-500.0,0.00027671,2]
[311659124,1705289444237,-500.0,0.00027671,2]
[311659125,1705289444247,-500.0,0.00027671,2]
[311659126,1705289444256,-503.86568549,0.00027671,2]
[311659127,1705289444265,-500.0,0.00027671,2]
[311659128,1705289444275,-250.12257421,0.00027671,2]
[311659129,1705289444284,-1955.28,0.00027671,2]
[311659130,1705289444293,-500.0,0.00027671,2]
[311659131,1705289444304,-500.0,0.00027671,2]
[311659132,1705289444314,-500.0,0.00027671,2]
[311659133,1705289444323,-503.45776343,0.00027671,2]
[311659134,1705289444333,-500.0,0.00027671,2]
[311659135,1705289444342,-500.0,0.00027671,2]
[311659136,1705289444352,-535.73,0.00027671,2]
[311659137,1705289444361,-500.0,0.00027671,2]
[311659138,1705289444370,-501.22037415,0.00027671,2]
[311659139,1705289444379,-287.40908041,0.00027671,2]
[311659140,1705289444389,-500.0,0.00027671,2]
[311659141,1705289444398,-500.0,0.00027671,2]
[311659142,1705289444408,-500.0,0.00027671,2]
[311659143,1705289444417,-398.73359353,0.00027671,2]
[311659144,1705289444426,-500.0,0.00027671,2]
[311659145,1705289444435,-507.82176411,0.00027671,2]
[311659146,1705289444444,-500.0,0.00027671,2]
[311659147,1705289444453,-500.0,0.00027671,2]
[311659148,1705289444463,-646.25,0.00027671,2]
[311659149,1705289444473,-500.0,0.00027671,2]
[311659150,1705289444482,-500.0,0.00027671,2]
[311659151,1705289444493,-510.92630338,0.00027671,2]
[311659152,1705289444504,-831.12,0.00027671,2]
[311659153,1705289444513,-500.0,0.00027671,2]
[311659154,1705289444523,-503.2282756,0.00027671,2]
[311659155,1705289444533,-505.69137092,0.00027671,2]
[311659156,1705289444542,-401.59386146,0.00027671,2]
[311659157,1705289444553,-500.0,0.00027671,2]
[311659158,1705289444563,-500.0,0.00027671,2]
[311659159,1705289444573,-507.41897844,0.00027671,2]
[311659160,1705289444582,-383.87330556,0.00027671,2]
[311659161,1705289444591,-500.0,0.00027671,2]
[311659162,1705289444601,-500.0,0.00027671,2]
[311659163,1705289444615,-500.0,0.00027671,2]
[311659164,1705289444626,-500.0,0.00027671,2]
[311659165,1705289444635,-500.0,0.00027671,2]
[311659166,1705289444645,-500.0,0.00027671,2]
[311659167,1705289444654,-503.82291025,0.00027671,2]
[311659168,1705289444663,-500.0,0.00027671,2]
[311659169,1705289444672,-500.0,0.00027671,2]
[311659170,1705289444682,-425.03867286,0.00027671,2]
[311659171,1705289444691,-500.0,0.00027671,2]
[311659172,1705289444700,-500.0,0.00027671,2]
[311659173,1705289444710,-189.61033351,0.00027671,2]
[311659174,1705289444718,-420.44547826,0.00027671,2]
[311659175,1705289444727,-500.0,0.00027671,2]
[311659176,1705289444737,-502.29616248,0.00027671,2]
[311659177,1705289444746,-500.0,0.00027671,2]
[311659178,1705289444754,-500.0,0.00027671,2]
[311659179,1705289444764,-500.0,0.00027671,2]
[311659180,1705289444773,-500.0,0.00027671,2]
[311659181,1705289444782,-500.0,0.00027671,2]
[311659182,1705289444792,-500.0,0.00027671,2]
[311659183,1705289444803,-500.0,0.00027671,2]
[311659184,1705289444812,-1000.0,0.00027671,2]
[311659185,1705289444821,-500.0,0.00027671,2]
[311659186,1705289444830,-500.0,0.00027671,2]
[311659187,1705289444840,-504.468551,0.00027671,2]
[311659188,1705289444848,-500.0,0.00027671,2]
[311659189,1705289444857,-500.0,0.00027671,2]
[311659190,1705289444866,-500.0,0.00027671,2]
[311659191,1705289444876,-500.0,0.00027671,2]
[311659192,1705289444885,-500.0,0.00027671,2]
[311659193,1705289444894,-504.38492076,0.00027671,2]
[311659194,1705289444904,-377.45367619,0.00027671,2]
[311659195,1705289444913,-500.66104757,0.00027671,2]
[311659196,1705289444923,-400.61539847,0.00027671,2]
[311659197,1705289444932,-500.0,0.00027671,2]
[311659198,1705289444941,-607.63560946,0.00027671,2]
[311659199,1705289444950,-500.0,0.00027671,2]
[311659200,1705289444960,-1195.91,0.00027671,2]
[311659201,1705289444969,-620.7001689,0.00027671,2]
[311659202,1705289444978,-415.79701904,0.00027671,2]
[311659203,1705289445056,-500.0,0.00027671,2]
[311659204,1705289445074,-500.0,0.00027671,2]
[311659205,1705289445083,-500.0,0.00027671,2]
[311659206,1705289445092,-502.38159096,0.00027671,2]
[311659207,1705289445102,-500.0,0.00027671,2]
[311659208,1705289445111,-500.0,0.00027671,2]
[311659209,1705289445120,-500.0,0.00027671,2]
[311659210,1705289445128,-824.32,0.00027671,2]
[311659211,1705289445138,-500.0,0.00027671,2]
[311659212,1705289445147,-582.5,0.00027671,2]
[311659213,1705289445156,-490.0,0.00027671,2]
[311659214,1705289445166,-500.73512296,0.00027671,2]
[311659215,1705289445175,-500.0,0.00027671,2]
[311659216,1705289445185,-500.0,0.00027671,2]
[311659217,1705289445194,-500.0,0.00027671,2]
[311659218,1705289445205,-500.0,0.00027671,2]
[311659219,1705289445214,-500.0,0.00027671,2]
[311659220,1705289445224,-500.0,0.00027671,2]
[311659221,1705289445234,-225.8789871,0.00027671,2]
[311659222,1705289445243,-504.42683883,0.00027671,2]
[311659223,1705289445252,-502.93276528,0.00027671,2]
[311659224,1705289445262,-504.8361977,0.00027671,2]
[311659225,1705289445271,-500.0,0.00027671,2]
[311659226,1705289445280,-4613.88,0.00027671,2]
[311659227,1705289445290,-500.0,0.00027671,2]
[311659228,1705289445300,-507.23683336,0.00027671,2]
[311659229,1705289445309,-500.0,0.00027671,2]
[311659230,1705289445319,-500.0,0.00027671,2]
[311659231,1705289445328,-505.76316621,0.00027671,2]
[311659232,1705289445337,-229.20978321,0.00027671,2]
[311659233,1705289445346,-720.0,0.00027671,2]
[311659234,1705289445356,-539.12,0.00027671,2]
[311659235,1705289445365,-500.0,0.00027671,2]
[311659236,1705289445374,-500.0,0.00027671,2]
[311659237,1705289445383,-500.0,0.00027671,2]
[311659238,1705289445392,-508.42158599,0.00027671,2]
[311659239,1705289445401,-502.09339175,0.00027671,2]
[311659240,1705289445411,-500.0,0.00027671,2]
[311659241,1705289445420,-500.0,0.00027671,2]
[311659242,1705289445430,-500.0,0.00027671,2]
[311659243,1705289445439,-312.3321473,0.00027671,2]
[311659244,1705289445448,-500.0,0.00027671,2]
[311659245,1705289445457,-992.24,0.00027671,2]
[311659246,1705289445466,-506.080899,0.00027671,2]
[311659247,1705289445475,-524.70301198,0.00027671,2]
[311659248,1705289445484,-1029.15,0.00027671,2]
[311659249,1705289445494,-500.0,0.00027671,2]
[311659250,1705289445502,-500.0,0.00027671,2]
[311659251,1705289445512,-500.0,0.00027671,2]
[311659252,1705289445522,-500.0,0.00027671,2]
[311659253,1705289445531,-512.82,0.00027671,2]
[311659254,1705289445540,-500.0,0.00027671,2]
[311659255,1705289445550,-500.0,0.00027671,2]
[311659256,1705289445560,-506.63455425,0.00027671,2]
[311659257,1705289445569,-500.0,0.00027671,2]
[311659258,1705289445578,-500.0,0.00027671,2]
[311659259,1705289445587,-563.49998224,0.00027671,2]
[311659260,1705289445597,-500.0,0.00027671,2]
[311659261,1705289445610,-500.0,0.00027671,2]
[311659262,1705289445620,-500.29488324,0.00027671,2]
[311659263,1705289445629,-250.30709217,0.00027671,2]
[311659264,1705289445638,-500.0,0.00027671,2]
[311659265,1705289445649,-884.67,0.00027671,2]
[311659266,1705289445658,-2014.51,0.00027671,2]
[311659267,1705289445667,-502.1632738,0.00027671,2]
[311659268,1705289445676,-1159.17,0.00027671,2]
[311659269,1705289445686,-500.0,0.00027671,2]
[311659270,1705289445695,-500.0,0.00027671,2]
[311659271,1705289445705,-500.0,0.00027671,2]
[311659272,1705289445714,-500.0,0.00027671,2]
[311659273,1705289445724,-500.0,0.00027671,2]
[311659274,1705289445733,-500.0,0.00027671,2]
[311659275,1705289445742,-966.61,0.00027671,2]
[311659276,1705289445751,-733.15,0.00027671,2]
[311659277,1705289445760,-502.01063694,0.00027671,5]
[311659278,1705289445770,-500.0,0.00027671,2]
[311659280,1705289445779,-500.0,0.00027671,2]
[311659282,1705289445789,-500.0,0.00027671,2]
[311659284,1705289445799,-502.23369092,0.00027671,2]
[311659285,1705289445809,-2072.65,0.00027671,2]
[311659286,1705289445819,-500.0,0.00027671,2]
[311659287,1705289445829,-500.0,0.00027671,2]
[311659288,1705289445839,-532.1773052,0.00027671,2]
[311659289,1705289445849,-586.25,0.00027671,2]
[311659290,1705289445859,-10355.42,0.00027671,2]
[311659291,1705289445869,-500.0,0.00027671,2]
[311659292,1705289445878,-500.0,0.00027671,2]
[311659293,1705289445887,-500.0,0.00027671,2]
[311659294,1705289445897,-5524.09,0.00027671,2]
[311659296,1705289445906,-500.0,0.00027671,2]
[311659298,1705289445914,-500.0,0.00027671,2]
[311659300,1705289445923,-503.25842839,0.00027671,2]
[311659301,1705289445932,-500.0,0.00027671,2]
[311659302,1705289445942,-551.03374077,0.00027671,2]
[311659303,1705289445952,-503.56970682,0.00027671,2]
[311659304,1705289445961,-5618.65,0.00027671,2]
[311659305,1705289445970,-549.22,0.00027671,2]
[311659306,1705289445979,-500.0,0.00027671,2]
[311659307,1705289445989,-500.0,0.00027671,2]
[311659308,1705289445998,-500.0,0.00027671,2]
[311659309,1705289446007,-3960.16,0.00027671,2]
[311659310,1705289446016,-500.3640637,0.00027671,2]
[311659311,1705289446025,-647.5156929,0.00027671,2]
[311659312,1705289446034,-3007.8,0.00027671,2]
[311659313,1705289446044,-500.0,0.00027671,2]
[311659314,1705289446057,-500.0,0.00027671,2]
[311659315,1705289446067,-500.0,0.00027671,2]
[311659316,1705289446077,-500.0,0.00027671,2]
[311659317,1705289446086,-500.0,0.00027671,2]
[311659318,1705289446095,-501.62818463,0.00027671,2]
[311659319,1705289446104,-502.83385519,0.00027671,2]
[311659320,1705289446114,-17566.74,0.00027671,2]
[311659321,1705289446123,-2165.09,0.00027671,2]
[311659322,1705289446132,-500.0,0.00027671,2]
[311659323,1705289446141,-500.0,0.00027671,2]
[311659324,1705289446150,-500.0,0.00027671,2]
[311659325,1705289446159,-500.0,0.00027671,2]
[311659326,1705289446169,-500.0,0.00027671,2]
[311659328,1705289446178,-502.80293776,0.00027671,2]
[311659330,1705289446187,-500.0,0.00027671,2]
[311659332,1705289446196,-1396.14,0.00027671,2]
[311659334,1705289446205,-500.0,0.00027671,2]
[311659335,1705289446215,-500.0,0.00027671,2]
[311659336,1705289446225,-500.56900131,0.00027671,2]
[311659337,1705289446234,-500.0,0.00027671,2]
[311659338,1705289446243,-500.0,0.00027671,2]
[311659339,1705289446252,-500.0,0.00027671,2]
[311659340,1705289446262,-500.0,0.00027671,2]
[311659341,1705289446271,-500.0,0.00027671,2]
[311659342,1705289446280,-534.36183417,0.00027671,2]
[311659343,1705289446289,-500.0,0.00027671,2]
[311659344,1705289446299,-500.0,0.00027671,2]
[311659345,1705289446310,-501.61315513,0.00027671,2]
[311659346,1705289446320,-500.0,0.00027671,2]
[311659347,1705289446329,-500.0,0.00027671,2]
[311659348,1705289446338,-500.0,0.00027671,2]
[311659349,1705289446348,-500.0,0.00027671,2]
[311659350,1705289446359,-500.0,0.00027671,2]
[311659351,1705289446368,-1214.34,0.00027671,2]
[311659352,1705289446377,-500.0,0.00027671,2]
[311659353,1705289446387,-500.0,0.00027671,2]
[311659354,1705289446396,-510.93448844,0.00027671,2]
[311659355,1705289446406,-500.0,0.00027671,2]
[311659356,1705289446415,-500.0,0.00027671,2]
[311659357,1705289446426,-500.0,0.00027671,2]
[311659358,1705289446435,-688.3625771,0.000277,2]
[311659359,1705289446444,-509.5498702,0.00027808,2]
[311659360,1705289446458,-441.93807862,0.000279,2]
[311659361,1705289446467,-500.0,0.00027944,2]
[311659362,1705289446476,-500.0,0.00027944,2]
[311659363,1705289446485,-202.73433386,0.00027944,4]
[311659364,1705289446495,-500.0,0.00027944,4]
[311659365,1705289446504,-211.82992355,0.00027944,4]
[311659366,1705289446515,-497.83570284,0.00027944,4]
[311659367,1705289446524,-324.97354414,0.00027944,4]
[311659368,1705289446533,-500.0,0.00027944,2]
[311659369,1705289446542,-500.0,0.00027944,2]
[311659370,1705289446551,-500.0,0.00027945,2]
[311659371,1705289446560,-500.0,0.00027945,2]
[311659372,1705289446569,-500.0,0.00027945,2]
[311659373,1705289446578,-263.87300385,0.00027945,2]
[311659374,1705289446588,-1017.38,0.00027945,2]
[311659375,1705289446597,-507.70866231,0.00027945,2]
[311659376,1705289446607,-623.19502308,0.00027945,2]
[311659377,1705289446617,-220.47192887,0.00027945,2]
[311659378,1705289446627,-500.0,0.00027945,2]
[311659379,1705289446636,-500.0,0.00027945,2]
[311659380,1705289446645,-500.0,0.00027945,2]
[311659381,1705289446654,-500.0,0.00027945,2]
[311659382,1705289446664,-506.40423692,0.00027945,2]
[311659383,1705289446674,-501.9226916,0.00027945,2]
[311659384,1705289446683,-700.24,0.00027945,2]
[311659385,1705289446693,-211.43012232,0.00027945,2]
[311659386,1705289446702,-612.3,0.00027945,2]
[311659387,1705289446711,-500.0,0.00027945,2]
[311659388,1705289446721,-500.0,0.00027945,2]
[311659389,1705289446730,-500.0,0.00027945,2]
[311659390,1705289446740,-301.30021568,0.00027945,2]
[311659391,1705289446749,-206.74962186,0.00027945,2]
[311659392,1705289446758,-629.50201696,0.00027945,2]
[311659393,1705289446767,-1955.28,0.00027945,2]
[311659394,1705289446777,-552.11188716,0.00027945,2]
[311659395,1705289446786,-500.0,0.00027945,2]
[311659396,1705289446795,-500.0,0.00027945,2]
[311659397,1705289446805,-500.0,0.00027945,2]
[311659398,1705289446814,-535.73,0.00027945,2]
[311659399,1705289446824,-500.0,0.00027945,2]
[311659400,1705289446833,-500.0,0.00027945,2]
[311659401,1705289446842,-500.0,0.00027945,2]
[311659402,1705289446851,-500.0,0.00027945,2]
[311659403,1705289446860,-500.0,0.00027945,2]
[311659404,1705289446869,-500.0,0.00027945,2]
[311659405,1705289446878,-646.25,0.00027945,2]
[311659406,1705289446887,-600.84545332,0.00027945,2]
[311659407,1705289446897,-565.18204006,0.00027945,2]
[311659408,1705289446906,-831.12,0.00027945,2]
[311659409,1705289446915,-500.0,0.00027945,2]
[311659410,1705289446924,-523.7082104,0.00027945,2]
[311659411,1705289447005,-500.0,0.00027945,2]
[311659412,1705289447014,-500.0,0.00027945,2]
[311659413,1705289447024,-505.76347654,0.00027945,2]
[311659414,1705289447034,-500.0,0.00027945,2]
[311659415,1705289447043,-500.0,0.00027945,2]
[311659416,1705289447054,-500.0,0.00027945,2]
[311659417,1705289447063,-500.0,0.00027945,2]
[311659418,1705289447072,-500.0,0.00027945,2]
[311659419,1705289447081,-500.0,0.00027945,2]
[311659420,1705289447092,-500.0,0.00027945,2]
[311659421,1705289447101,-500.0,0.00027945,2]
[311659422,1705289447110,-494.55021322,0.00027945,2]
[311659423,1705289447121,-500.0,0.00027945,2]
[311659424,1705289447130,-500.0,0.00027945,2]
[311659425,1705289447140,-505.36838094,0.00027945,2]
[311659426,1705289447148,-500.0,0.00027945,2]
[311659427,1705289447158,-518.86247278,0.00027945,2]
[311659428,1705289447167,-500.0,0.00027945,2]
[311659429,1705289447176,-500.0,0.00027945,2]
[311659430,1705289447185,-509.6842685,0.00027945,2]
[311659431,1705289447194,-530.74249205,0.00027945,2]
[311659432,1705289447204,-500.0,0.00027945,2]
[311659433,1705289447213,-501.93703226,0.00027945,2]
[311659434,1705289447222,-500.0,0.00027945,2]
[311659435,1705289447231,-500.0,0.00027945,2]
[311659436,1705289447241,-526.91670753,0.00027945,2]
[311659437,1705289447250,-1195.91,0.00027945,2]
[311659438,1705289447259,-500.0,0.00027945,2]
[311659439,1705289447268,-500.0,0.00027945,2]
[311659440,1705289447277,-500.0,0.00027945,2]
[311659441,1705289447287,-500.0,0.00027945,2]
[311659442,1705289447296,-824.32,0.00027945,2]
[311659443,1705289447306,-582.5,0.00027945,2]
[311659444,1705289447315,-501.59632751,0.00027945,2]
[311659445,1705289447324,-500.0,0.00027945,2]
[311659446,1705289447334,-500.0,0.00027945,2]
[311659447,1705289447344,-515.07367928,0.00027945,2]
[311659448,1705289447353,-221.18200146,0.00027945,2]
[311659449,1705289447362,-500.0,0.00027945,2]
[311659450,1705289447373,-4613.88,0.00027945,2]
[311659451,1705289447382,-500.0,0.00027945,2]
[311659452,1705289447391,-500.0,0.00027945,2]
[311659453,1705289447400,-720.0,0.00027945,2]
[311659454,1705289447410,-539.12,0.00027945,2]
[311659455,1705289447419,-500.0,0.00027945,2]
[311659456,1705289447428,-202.92742487,0.00027945,2]
[311659457,1705289447437,-421.22353423,0.00027945,2]
[311659458,1705289447447,-500.0,0.00027945,2]
[311659459,1705289447457,-992.24,0.00027945,2]
[311659460,1705289447466,-1029.15,0.00027945,2]
[311659461,1705289447475,-492.96320687,0.00027945,2]
[311659462,1705289447485,-500.0,0.00027945,2]
[311659463,1705289447495,-500.0,0.00027945,2]
[311659464,1705289447505,-512.82,0.00027945,2]
[311659465,1705289447514,-500.0,0.00027945,2]
[311659466,1705289447524,-508.34842881,0.00027945,2]
[311659467,1705289447533,-500.0,0.00027945,2]
[311659468,1705289447543,-500.0,0.00027945,2]
[311659469,1705289447553,-505.17356154,0.00027945,2]
[311659470,1705289447562,-884.67,0.00027945,2]
[311659471,1705289447572,-2014.51,0.00027945,2]
[311659472,1705289447581,-1159.17,0.00027945,2]
[311659473,1705289447591,-501.31127598,0.00027945,2]
[311659474,1705289447601,-500.0,0.00027945,2]
[311659475,1705289447610,-502.5187616,0.00027945,2]
[311659476,1705289447621,-559.57981711,0.00027945,2]
[311659477,1705289447630,-500.0,0.00027945,2]
[311659478,1705289447640,-500.0,0.00027945,2]
[311659479,1705289447650,-966.61,0.00027945,2]
[311659480,1705289447659,-733.15,0.00027945,2]
[311659481,1705289447669,-500.0,0.00027945,2]
[311659482,1705289447678,-505.37573343,0.00027945,2]
[311659483,1705289447687,-2072.65,0.00027945,2]
[311659484,1705289447697,-500.0,0.00027945,2]
[311659485,1705289447708,-500.0,0.00027945,2]
[311659486,1705289447718,-586.25,0.00027945,2]
[311659487,1705289447727,-10355.42,0.00027945,2]